Workbook

Sheet Planilha1
B2: A | H2: B | N2: C | T2: D | Z2: brake | AG2: A | AH2: B | AI2: C | AJ2: D
B3: factory | C3: LEFT | D3: RIGHT | E3: left | F3: right | G3: symet | H3: factory | I3: LEFT | J3: RIGHT | K3: left | L3: right | M3: symet. | N3: factory | O3: LEFT | P3: RIGHT | Q3: left | R3: dir. | S3: symet | T3: factory | U3: LEFT | V3: RIGHT | W3: left. | X3: right | Y3: symet | Z3: factory | AA3: LEFT | AB3: RIGHT | AC3: left. | AD3: right | AE3: symet
A4: 1 | B4: =AG4+$M$23 -> 7894 | E4: =C4-B4 -> -7894 | F4: =D4-B4 -> -7894 | G4: =C4-D4 -> 0 | H4: =AH4+$M$23 -> 7864 | K4: =I4-H4 -> -7864 | L4: =J4-H4 -> -7864 | M4: =I4-J4 -> 0 | N4: =AI4+$M$23 -> 7836 | Q4: =O4-N4 -> -7836 | R4: =P4-N4 -> -7836 | S4: =O4-P4 -> 0 | T4: =AJ4+$M$23 -> 7919 | W4: =U4-T4 -> -7919 | X4: =V4-T4 -> -7919 | Y4: =U4-V4 -> 0 | Z4: 8136 | AC4: =AA4-Z4 -> -8136 | AD4: =AB4-Z4 -> -8136 | AE4: =AA4-AB4 -> 0 | AG4: 7894 | AH4: 7864 | AI4: 7836 | AJ4: 7919
A5: 2 | B5: 7784 | E5: =C5-B5 -> -7784 | F5: =D5-B5 -> -7784 | G5: =C5-D5 -> 0 | H5: 7747 | K5: =I5-H5 -> -7747 | L5: =J5-H5 -> -7747 | M5: =I5-J5 -> 0 | N5: 7747 | Q5: =O5-N5 -> -7747 | R5: =P5-N5 -> -7747 | S5: =O5-P5 -> 0 | T5: =AJ5+$M$23 -> 7827 | W5: =U5-T5 -> -7827 | X5: =V5-T5 -> -7827 | Y5: =U5-V5 -> 0 | Z5: 7946 | AC5: =AA5-Z5 -> -7946 | AD5: =AB5-Z5 -> -7946 | AE5: =AA5-AB5 -> 0 | AG5: 7784 | AH5: 7747 | AI5: 7747 | AJ5: 7827
A6: 3 | B6: 7756 | E6: -7756 | F6: -7756 | G6: 0 | H6: 7717 | K6: -7717 | L6: -7717 | M6: 0 | N6: 7715 | Q6: -7715 | R6: -7715 | S6: 0 | T6: =AJ6+$M$23 -> 7800 | W6: -7800 | X6: -7800 | Y6: 0 | Z6: 7789 | AC6: -7789 | AD6: -7789 | AE6: 0 | AG6: 7756 | AH6: 7717 | AI6: 7715 | AJ6: 7800
A7: 4 | B7: 7806 | E7: -7806 | F7: -7806 | G7: 0 | H7: 7774 | K7: -7774 | L7: -7774 | M7: 0 | N7: 7751 | Q7: -7751 | R7: -7751 | S7: 0 | T7: =AJ7+$M$23 -> 7827 | W7: -7827 | X7: -7827 | Y7: 0 | Z7: 7750 | AC7: -7750 | AD7: -7750 | AE7: 0 | AG7: 7806 | AH7: 7774 | AI7: 7751 | AJ7: 7827
A8: 5 | B8: 7732 | E8: -7732 | F8: -7732 | G8: 0 | H8: 7713 | K8: -7713 | L8: -7713 | M8: 0 | N8: 7689 | Q8: -7689 | R8: -7689 | S8: 0 | T8: 7775 | W8: -7775 | X8: -7775 | Z8: 7536 | AC8: -7536 | AD8: -7536 | AE8: 0 | AG8: 7732 | AH8: 7713 | AI8: 7689 | AJ8: 7775
A9: 6 | B9: 7597 | E9: -7597 | F9: -7597 | G9: 0 | H9: 7570 | K9: -7570 | L9: -7570 | M9: 0 | N9: 7569 | Q9: -7569 | R9: -7569 | S9: 0 | T9: 7638 | W9: -7638 | X9: -7638 | Z9: 7386 | AC9: -7386 | AD9: -7386 | AE9: 0 | AG9: 7597 | AH9: 7570 | AI9: 7569 | AJ9: 7638
A10: 7 | B10: 7547 | E10: -7547 | F10: -7547 | G10: 0 | H10: 7522 | K10: -7522 | L10: -7522 | M10: 0 | N10: 7517 | Q10: -7517 | R10: -7517 | S10: 0 | T10: 7583 | W10: -7583 | X10: -7583 | Z10: 7290 | AC10: -7290 | AD10: -7290 | AE10: 0 | AG10: 7547 | AH10: 7522 | AI10: 7517 | AJ10: 7583
A11: 8 | B11: 7585 | E11: -7585 | F11: -7585 | G11: 0 | H11: 7564 | K11: -7564 | L11: -7564 | M11: 0 | N11: 7538 | Q11: -7538 | R11: -7538 | S11: 0 | T11: 7591 | W11: -7591 | X11: -7591 | Z11: 7316 | AC11: -7316 | AD11: -7316 | AE11: 0 | AG11: 7585 | AH11: 7564 | AI11: 7538 | AJ11: 7591
A12: 9 | B12: 7354 | E12: -7354 | F12: -7354 | G12: 0 | N12: 7337 | Q12: -7337 | R12: -7337 | S12: 0 | Z12: 7163 | AC12: -7163 | AD12: -7163 | AE12: 0 | AG12: 7354 | AI12: 7337
A13: 10 | B13: 7234 | E13: -7234 | F13: -7234 | G13: 0 | N13: 7245 | Q13: -7245 | R13: -7245 | S13: 0 | Z13: 7075 | AC13: -7075 | AD13: -7075 | AE13: 0 | AG13: 7234 | AI13: 7245
A14: 11 | B14: 7183 | E14: -7183 | F14: -7183 | G14: 0 | N14: 7205 | Q14: -7205 | R14: -7205 | S14: 0 | Z14: 7053 | AC14: -7053 | AD14: -7053 | AE14: 0 | AG14: 7183 | AI14: 7205
A15: 12 | B15: 7111 | E15: -7111 | F15: -7111 | G15: 0 | N15: 7125 | Q15: -7125 | R15: -7125 | S15: 0 | Z15: 7147 | AC15: -7147 | AD15: -7147 | AE15: 0 | AG15: 7111 | AI15: 7125
A16: 13 | B16: 7095 | E16: -7095 | F16: -7095 | G16: 0 | N16: 7135 | Q16: -7135 | R16: -7135 | S16: 0 | AG16: 7095 | AI16: 7135
A17: 15
A18: 16
A19: 17
A20: 18
D22: RIGHT | H22: LEFT | M22: RISER | S22: TRIM LEFT SIDE | V22: TRIM RIGHT SIDE
C23: A | D23: X | E23: X | F23: X | G23: X | H23: X | I23: X | J23: AS+ | K23: 30 | M23: 0 | Q23: SECTION | S23: 3 | T23: 2 | U23: 1 | V23: 1 | W23: 2 | X23: 3
C24: B | D24: X | E24: X | F24: X | G24: X | H24: X | I24: X | J24: AS | K24: 22 | Q24: A average | S24: =AVERAGE(E12:E14) -> -7257 | T24: =AVERAGE(E8:E11) -> -7615.25 | U24: =AVERAGE(E4:E7) -> -7810 | V24: =AVERAGE(F4:F7) -> -7810 | W24: =AVERAGE(F8:F11) -> -7615.25 | X24: =AVERAGE(F12:F14) -> -7257
C25: C | D25: X | E25: X | F25: X | G25: X | H25: X | I25: X | J25: DL | K25: 15 | Q25: B average | S25: =AVERAGE(Q12:Q14) -> -7262.333333 | T25: =AVERAGE(Q8:Q11) -> -7578.25 | U25: =AVERAGE(Q4:Q7) -> -7762.25 | V25: =AVERAGE(R4:R7) -> -7762.25 | W25: =AVERAGE(R8:R11) -> -7578.25 | X25: =AVERAGE(R12:R14) -> -7262.333333
Q26: FINAL TRIM | S26: =S24-S25 -> 5.333333333 | T26: -37 | U26: -47.75 | V26: -47.75 | W26: -37 | X26: =X24-X25 -> 5.333333333
